Cogmind - Beta 11.1 @@@ ROGUE MODE // 2022.07.01 @ 12:52:05 Player: Cyurio Result: Destroyed by D-53 Grenadier with Mini Grenade Launcher Performance ------------- Evolutions (0) 0 Regions Visited (2) 400 Robots Destroyed (22) 110 Value Destroyed (428) 428 Prototype IDs (2) 40 Alien Tech Used (0) 0 Bonus (0) 0 TOTAL SCORE: 978 Bonus ------- None Cogmind --------- Core Integrity 0/250 Matter 245/300 Energy 99/100 System Corruption 0% Temperature Cool (0) Movement Rolling (100) Location -10/Mines Parts ------- > --- POWER (1) -------- (None) > --- PROPULSION (2) --- Aluminum Leg Compact Wheel > --- UTILITY (2) ------ Medium Storage Unit Visual Processing Unit > --- WEAPON (2) ------- (None) > --- INVENTORY (10) --- Reinforced Ion Engine Large Storage Unit High-capacity Storage Unit Signal Interpreter ECM Suite Heavy Assault Rifle Mini Grenade Launcher Mini Grenade Launcher Peak State ------------ > --- POWER ------------ Reinforced Ion Engine > --- PROPULSION ------- Aluminum Leg Aluminum Leg > --- UTILITY ---------- Large Storage Unit Visual Processing Unit > --- WEAPON ----------- Heavy Assault Rifle Heavy Assault Rifle > --- INVENTORY -------- Light Ion Engine Light Treads Compact Wheel Medium Storage Unit High-capacity Storage Unit Signal Interpreter ECM Suite Heavy Assault Rifle Heavy Assault Rifle [Rating: 12] Favorites ----------- Power Ion Engine Engine Ion Engine Propulsion Light Treads Treads Light Treads Leg Aluminum Leg Wheel Compact Wheel Utility Visual Processing Unit Storage Large Storage Unit Processor Visual Processing Unit Weapon Heavy Assault Rifle Ballistic Gun Heavy Assault Rifle Launcher Mini Grenade Launcher Build | -11 -10 -10 ------- Run | Scr Mat Min Slots Evolved . | . . . Power . | . . . Propulsion . | . . . Utility . | . . . Weapon . | . . . Parts Attached 25 | . 20 5 Power 3 | . 3 . Engine 3 | . 3 . Core . | . . . Reactor . | . . . Propulsion 10 | . 9 1 Treads 4 | . 4 . Leg 4 | . 4 . Wheel 2 | . 1 1 Hover . | . . . Flight . | . . . Utility 5 | . 4 1 Device . | . . . Storage 4 | . 3 1 Processor 1 | . 1 . Hackware . | . . . Protection . | . . . Artifact . | . . . Weapon 7 | . 4 3 Energy Gun . | . . . Energy Cannon . | . . . Ballistic Gun 6 | . 4 2 Ballistic Cannon . | . . . Launcher 1 | . . 1 Special Weapon . | . . . Impact Weapon . | . . . Slashing Weapon . | . . . Piercing Weapon . | . . . Special Melee Weapon . | . . . Unidentified Prototypes . | . . . Parts Lost 7 | . 2 5 Power 2 | . 1 1 Propulsion 2 | . 1 1 Utility . | . . . Weapon 3 | . . 3 Highest Loss Streak 4 | . 1 4 To Critical Strikes . | . . . Average Slot Usage (%) 96 | . 96 96 Engine 13 | . 14 13 Treads 14 | . 16 . Leg 12 | . 10 27 Storage 14 | . 14 14 Processor 11 | . 11 14 Ballistic Gun 27 | . 27 24 Naked Turns . | . . . Heaviest Build 51 | 13 51 24 Greatest Support 40 | 20 40 20 Greatest Overweight (x) 10 | . 10 1 Average Overweight (x) . | . . . Largest Inventory Capacity 20 | . 20 15 Average Capacity 12 | . 12 10 Most Carried 11 | . 11 11 Average Carried 8 | . 8 9 Final Capacity 15 | 8 15 10 Final Carried 11 | 6 11 8 Class Distribution -------------------- 100% | Mutant Dominant Class ---------------- Mutant | -10/Materials Mutant | -10/Mines Resources | -11 -10 -10 ----------- Run | Scr Mat Min Matter Collected 668 | 200 468 . Remotely . | . . . Salvage Created 568 | . 559 9 Parts 41 | . 40 1 Haulers Intercepted 2 | . 2 . Recyclers Shooed . | . . . Parts Field Recycled . | . . . Retrieved Matter . | . . . Parts Self-Destructed . | . . . Prevented . | . . . Kills | -11 -10 -10 ------- Run | Scr Mat Min Combat Hostiles Destroyed 16 | . 13 3 Guns 13 | . 13 . AOE 3 | . . 3 Classes Destroyed 5 | . 5 . Builder 1 | . 1 . Hauler 2 | . 2 . Watcher 3 | . 3 . Swarmer 9 | . 6 3 Grunt 7 | . 7 . Best Kill Streak 4 | . 4 3 Combat Bots Only 3 | . 3 3 Max Kills in Single Turn 2 | . 2 1 Gunslinging . | . . . Exploded 1 | . . 1 Melee . | . . . Uniques/NPCs Destroyed . | . . . Combat | -11 -10 -10 -------- Run | Scr Mat Min Damage Taken 1106 | . 571 535 Core 266 | . 73 193 Absorbed by Shields . | . . . Core Remaining (%) 100 | 100 . . Volleys Fired 50 | . 47 3 Largest 2 | . 2 1 Hottest 46 | . 46 30 Shots Fired 97 | . 94 3 Gun 94 | . 94 . Cannon . | . . . Launcher 3 | . . 3 Special . | . . . Kinetic 94 | . 94 . Thermal . | . . . Explosive 3 | . . 3 Electromagnetic . | . . . Robot Hit Streak 12 | . 12 1 Robot Miss Streak 4 | . 4 1 Penetration Max . | . . . Secondary Targets 1 | . 1 . Max Gunslinging Chain 1 | . 1 . Shots Hit Robots 60 | . 59 1 Core Hits 30 | . 28 2 Critical Kills . | . . . Critical Parts Destroyed . | . . . Critical Strikes . | . . . Melee Attacks . | . . . Impact . | . . . Slashing . | . . . Piercing . | . . . Sneak Attacks . | . . . Combat Hostiles . | . . . Follow-up Attacks . | . . . Damage Inflicted 1100 | . 910 190 Guns 899 | . 899 . Cannons . | . . . Explosions 190 | . . 190 Melee . | . . . Ramming 11 | . 11 . Kinetic 899 | . 899 . Thermal . | . . . Explosive 190 | . . 190 Electromagnetic . | . . . Impact . | . . . Slashing . | . . . Piercing . | . . . Highest Corruption . | . . . Average Corruption . | . . . Corruption Purged . | . . . Corruption Blocked . | . . . Overload Shots . | . . . Overflow Damage 33 | . . 33 Projectiles . | . . . Explosions 33 | . . 33 Melee . | . . . Knockbacks . | . . . Impact . | . . . Kinetic . | . . . Secondary . | . . . Self-Inflicted Damage 6 | . . 6 Shots 1 | . . 1 Rammed 1 | . 1 . Targets Rammed 4 | . 4 . Kicked 3 | . 3 . Crushed . | . . . Highest Temperature 22 | . 22 . Average Temperature 8 | . 8 . Received Heat Transfer 213 | . 213 . Siege Activations . | . . . Robots Corrupted . | . . . Combat Hostiles . | . . . Parts Fried . | . . . Impact Corruptions . | . . . Robots Melted . | . . . Combat Hostiles . | . . . Parts Melted . | . . . Heat Transferred . | . . . Parts Sabotaged . | . . . Parts Stolen . | . . . Parts Stripped . | . . . Power Chain Reactions . | . . . Missiles Intercepted . | . . . Alert | -11 -10 -10 ------- Run | Scr Mat Min Peak Influence 255 | . 255 201 Initial 45 | . . 45 Average 119 | . 111 179 Maximum Alert Level 1 | . 1 1 Low Security (%) 93 | . 94 88 Level 1 6 | . 5 12 Level 2 . | . . . Level 3 . | . . . Level 4 . | . . . Level 5 . | . . . High Security . | . . . Max Security . | . . . Squads Dispatched 3 | . 3 . Investigation 1 | . 1 . Extermination . | . . . Reinforcement 2 | . 2 . Assault . | . . . Garrison . | . . . Intercept . | . . . Searches Triggered . | . . . Construction Impeded . | . . . Haulers Reinforced . | . . . Active Scanning Responses . | . . . Cargo Convoy Interrupts . | . . . Stealth | -11 -10 -10 --------- Run | Scr Mat Min Distress Signals 2 | . 2 . Communications Jammed . | . . . Distress Signals . | . . . Times Spotted 26 | . 21 5 Peak Tracking Total 3 | . 3 3 Tactical Retreats . | . . . Traps | -11 -10 -10 ------- Run | Scr Mat Min Traps Triggered 2 | . 2 . Indirectly . | . . . Trap Hack Attempts . | . . . Triggered . | . . . Disarmed . | . . . Reprogrammed . | . . . Reused . | . . . Traps Extracted . | . . . Installed . | . . . Triggered . | . . . Machines | -11 -10 -10 ---------- Run | Scr Mat Min Machines Disabled 3 | . . 3 Max in Single Turn 3 | . . 3 Machines Sabotaged . | . . . Garrisons Compromised . | . . . Overloaded Fab Kills . | . . . Hacking | -11 -10 -10 --------- Run | Scr Mat Min Machines Accessed 5 | . 5 . Terminals 5 | . 5 . Fabricators . | . . . Repair Stations . | . . . Recycling Units . | . . . Scanalyzers . | . . . Garrison Access . | . . . Total Hacks 16 | . 16 . Successful 12 | . 12 . Failed 4 | . 4 . Catastrophic . | . . . Database Lockouts . | . . . Manual 11 | . 11 . Terminals 16 | . 16 . Fabricators . | . . . Repair Stations . | . . . Recycling Units . | . . . Scanalyzers . | . . . Garrison Access . | . . . Terminal Hacks 3 | . 3 . Prototype ID Bank 1 | . 1 . Branch Access Points 1 | . 1 . Alert Level 1 | . 1 . Fabricator Hacks . | . . . Repair Station Hacks . | . . . Recycling Unit Hacks . | . . . Scanalyzer . | . . . Garrison Access Hacks . | . . . Unauthorized Hacks 9 | . 9 . Terminals 9 | . 9 . Track 3 | . 3 . Assimilate 1 | . 1 . Botnet 5 | . 5 . Fabricators . | . . . Repair Stations . | . . . Recycling Units . | . . . Scanalyzers . | . . . Garrison Access . | . . . Data Cores Recovered . | . . . Used . | . . . Hacking Detections 2 | . 2 . Full Trace Events . | . . . Feedback Events . | . . . Feedback Blocked . | . . . Robot Schematics Acquired . | . . . Robots Built . | . . . Authchips . | . . . Time . | . . . Total Robot Build Rating . | . . . Part Schematics Acquired . | . . . Parts Built . | . . . Authchips . | . . . Time . | . . . Total Part Build Rating . | . . . Parts Repaired . | . . . Time . | . . . Parts Recycled . | . . . Recycled Matter . | . . . Retrieved Matter . | . . . Retrieved Components . | . . . Parts Scanalyzed . | . . . Part Schematics Acquired . | . . . Parts Damaged . | . . . Bothacking | -11 -10 -10 ------------ Run | Scr Mat Min Used RIF Installer . | . . . Robots Hacked . | . . . Non-combat . | . . . Combat . | . . . Robot Hacks Applied . | . . . Relay Couplers Released . | . . . Fabnet Peak Effective % . | . . . Robots Rewired . | . . . Allies Hacked . | . . . Hacks Repelled . | . . . Allies | -11 -10 -10 -------- Run | Scr Mat Min Total Allies . | . . . Largest Group . | . . . Highest-Rated Group . | . . . Highest-Rated Ally . | . . . Total Orders . | . . . Ally Attacks . | . . . Total Damage . | . . . Kills . | . . . Allies Corrupted . | . . . Allies Melted . | . . . Intel | -11 -10 -10 ------- Run | Scr Mat Min Robot Analysis Total . | . . . Derelict Logs Recovered . | . . . Drone Launches . | . . . Drone Recoveries . | . . . Exploration | -11 -10 -10 ------------- Run | Scr Mat Min Turns Passed 1366 | . 1191 175 Spaces Moved 716 | 1 580 135 Core 2 | . 2 . Treads 318 | . 318 . Legs 357 | 1 235 121 Wheels 39 | . 25 14 Hover . | . . . Flight . | . . . Fastest Speed 100 | 120 120 100 Average Speed 150 | 120 157 118 Slowest Speed 550 | 120 550 190 Overloaded Moves . | . . . Propulsion Burnouts . | . . . Robots Hopped . | . . . Cave-ins Triggered . | . . . Exploration Rate (%) 44 | 2 95 35 Regions Visited 2 Branch Regions 1 Pre-discovered Areas . | . . . Known Exits Taken 1 | . 1 . Unknown Exits Taken 1 | 1 . . Scrap Searched . | . . . Spaces Dug 6 | . . 6 Terrain Destroyed 12 | . . 12 Melee . | . . . Projectile . | . . . AOE 12 | . . 12 Terrain Rammed . | . . . Walls Destroyed . | . . . Machines Disabled . | . . . Actions | -11 -10 -10 --------- Run | Scr Mat Min Total 905 | . 759 146 Wait 95 | . 95 . Move 714 | . 579 135 Hop . | . . . Pick Up 9 | . 8 1 Fast Attach 4 | . 4 . Attach 4 | . 2 2 Detach . | . . . Swap 17 | . 14 3 Drop 8 | . 6 2 Fire 50 | . 47 3 Melee . | . . . Ram . | . . . Kick 3 | . 3 . Crush 1 | . 1 . Escape Stasis . | . . . Rewire . | . . . Trap . | . . . Miscellaneous . | . . . Route ------- -11/Scrapyard -10/Materials (discovered 4 exits: [*Mat x3] / *Min) -10/Mines History --------- Turn | Location | Event 1 | -11/Scrapyard | Discovered new exit (range 0) 1 | -11/Scrapyard | Entered Materials 83 | -10/Materials | Identified exit to Mines 306 | -10/Materials | Build established: Mutant 333 | -10/Materials | Discovered new exit (range 10) 762 | -10/Materials | Discovered new exit (range 15) 1028 | -10/Materials | Discovered new exit (range 13) 1192 | -10/Materials | Entered Mines 1271 | -10/Mines | Assembled infested the area 1276 | -10/Mines | Assisted by a Guerilla fighting off Assembled 1306 | -10/Mines | Found a hidden stash of uninstalled traps 1355 | -10/Mines | Core integrity fell below 50% 1356 | -10/Mines | Core integrity fell below 20% 1367 | -10/Mines | Destroyed by D-53 Grenadier with Mini Grenade Launcher Last Messages --------------- 01247_ A derelict is hurriedly installing traps. 01249_ 5B-D9B(g): "Hehe, this'll put a wrench in their mining defense operations..." 01249_ 5B-D9B(g) slips into the shadows. 01271_ ALERT: Infestation in the mines, dispatching Demolisher response squad. 01276_ A derelict emerges from the shadows: "You need to get out of here! I've been tracking a group of Assembled to figure out where they're coming from, and they're closing on this area, come on!" 01276_ K-01 Serf collects debris. 01306_ A stash of uninstalled traps is collected here! 01309_ Dropped Lgt. Treads. 01309_ Acquired Stasis Trap. 01310_ Dropped Stasis Trap. 01339_ The unstable cave ceiling collapses. 01350_ Aluminum Leg destroyed. 01350_ Hvy. Assault Rifle destroyed. 01350_ Lgt. Ion Engine destroyed. 01350_ Hvy. Assault Rifle destroyed. 01353_ The unstable cave ceiling collapses. Map ----- +----------------------------------------------------+ | | | | | | | | | ????????????????????????????????????????????? | | ######??????????????????????????????????????? | | #????####??????????????????????????????? | | #???##& ##?????????????????????????????? | | # #??##&=& #?????????????????????????????? | | # #### & #?????????????????????????????? | | ## ##??#####??????????????????????? | | ##### ##?????????????????????? | | ##????#########???????? | | ## ##???# ##??????? | | #### ##### ## ##?????? | | ???## ## ### ###???? | | ????# d ## ### #???? | | ????# d # ## ## ^ ##??? | | ????# # # # # ^ # #??? | | ???# ### ## ## ## ### # # ^ # #??? | | ?? ???##?#########?###?# # """ # # #??? | | ?????????????????????# """ # ##??? | | ??????????????????????## """ ^##???? | | ??????????????????????## ##????? | | ??????????????????????# #### #?????? | | ??????????????????????# @ ##??# #?????? | | ??????????????????????## #???## #?????? | | ???????????????????????## #????## #?????? | | ????????????????????????## #?????# #?????? | | ?????????????????????????# #?????# #?????? | | ?????????????????????????# #?????# ##????? | | ?????????????????????????# % #????## ###??? | | ????????????????????????? % ##?#### ##?? | | ????????????????????????? #??# #?? | | ????????????????????????? #??# #?? | | ????????????????????????? ##??# #### ##?? | | ????????????????????????# #???# #??## ##??? | | ????????????????????????? #???# #???####???? | | ????????????????????????? ????# #??????????? | | ???????????????????????????????# #??????????? | | ???????????????????????????????# #??????????? | | ???????????????????????????????# #??????????? | | ???????????????????????????????# #??????????? | | ???????????????????????????????# #??????????? | | ???????????????????????????##### #??????????? | | ??????????????????????###??# #??????????? | | ??????????????????????? ?# #####??????????? | | ???????????????????????## ## ##?????????????? | | ?????????????????????### ###???????????? | | ?????????????????????# #???????????? | +----------------------------------------------------+ Best States ------------- Heat Dissipation 25 Energy Generation 12 Energy Capacity 265 Matter Stores 300 Matter Capacity 300 Sight Range 18 Terrain Scan Density 10 Evasion (%) 55 Recoil Reduction 2 Item Schematics ----------------- None Robot Schematics ------------------ None Fabricated ------------ Nothing Alien Tech Used ----------------- None Achievements -------------- None Challenges ------------ None Game ------ Seed PointySurgeShredder Manual? 0 Play Time 00:12:03 Cumulative 60.8 hours Start 2022.07.01 @ 12:42:08 End 2022.07.01 @ 12:52:05 Sessions 1 Manual Loads 0 Difficulty Rogue Special Mode None Game No. 95 Rogue 95 Adventurer 0 Explorer 0 Win Type - Total 1 Types 1/0/0/0/0/0/0/0/0 Lore% 35 Gallery% 40 Achievement% 33 Wizard Run 0 Options --------- ASCII 0 Keyboard 1 Movement Vi Keybinds 1 Fullscreen 1 Font 24/Smallcaps Map View 76x50 Tactical HUD 1 Map Filters NONE Filters NONE Steam 1 RUN: b3f17741-eb02-4d11-83f8-9590a99c3270